Cogmind - Beta 14 @@@ ROGUE MODE // 2025.01.01 @ 19:41:30 Player: Nueadkie Result: Destroyed by YI-UF0 with YI-UF0's Doublenader Performance ------------- Evolutions (1) 500 Regions Visited (4) 800 Robots Destroyed (53) 265 Value Destroyed (1025) 1025 Prototype IDs (4) 80 Alien Tech Used (0) 0 Bonus (63) 63 TOTAL SCORE: 2733 Bonus ------- Follower Combat Kills 99 Friendly Fire -36 Cogmind --------- Core Integrity 0/400 Matter 300/300 Energy 100/100 System Corruption 0% Temperature Cool (0) Movement Core (1350) Ox26 Location -9/Mines Parts ------- > --- POWER (1) -------- (None) > --- PROPULSION (4) --- (None) > --- UTILITY (2) ------ Huge Storage Unit > --- WEAPON (2) ------- (None) > --- INVENTORY (25) --- Improved Ion Engine Light Treads Light Treads Flight Unit Flight Unit Flight Unit Flight Unit Flight Unit Heat Sink Medium Storage Unit High-capacity Matter Pod (200) Advanced Visual Processing Unit Sensor Array Signal Interpreter Terrain Scan Processor Propulsion Shielding EM Shotgun EM Shotgun Beam Cannon High-powered Shotgun High-powered Shotgun High-powered Shotgun High-powered Shotgun Grenade Launcher Grenade Launcher Peak State ------------ > --- POWER ------------ Ion Engine > --- PROPULSION ------- Aluminum Leg Aluminum Leg Improved Aluminum Leg Improved Aluminum Leg > --- UTILITY ---------- Heat Sink Huge Storage Unit > --- WEAPON ----------- High-powered Shotgun Katana > --- INVENTORY -------- Light Ion Engine Improved Ion Engine Light Treads Light Treads Aluminum Leg Flight Unit Flight Unit Flight Unit Flight Unit Heat Sink Medium Storage Unit High-capacity Matter Pod Advanced Visual Processing Unit Sensor Array Signal Interpreter Terrain Scan Processor Propulsion Shielding EM Shotgun EM Shotgun EM Shotgun EM Shotgun Beam Cannon Grenade Launcher Grenade Launcher [Rating: 18] Favorites ----------- Power Ion Engine Engine Ion Engine Propulsion Aluminum Leg Treads Light Treads Leg Aluminum Leg Utility Huge Storage Unit Device Heat Sink Storage Huge Storage Unit Weapon EM Shotgun Energy Gun EM Shotgun Energy Cannon Beam Cannon Ballistic Gun Assault Rifle Ballistic Cannon Improved Light Cannon Launcher Grenade Launcher Slashing Weapon Katana Build | -11 -10 -10 -9 -9 ------- Run | Yrd Mat Min Mat Min Slots Evolved 2 | . . . 2 . Power . | . . . . . Propulsion 2 | . . . 2 . Utility . | . . . . . Weapon . | . . . . . Parts Attached 47 | 7 10 1 28 1 Power 4 | 1 1 1 1 . Engine 4 | 1 1 1 1 . Core . | . . . . . Reactor . | . . . . . Propulsion 16 | 2 2 . 12 . Treads 2 | . . . 2 . Leg 14 | 2 2 . 10 . Wheel . | . . . . . Hover . | . . . . . Flight . | . . . . . Utility 9 | 2 5 . 1 1 Device 3 | 1 1 . . 1 Storage 6 | 1 4 . 1 . Processor . | . . . . . Hackware . | . . . . . Protection . | . . . . . Artifact . | . . . . . Weapon 18 | 2 2 . 14 . Energy Gun 5 | . 1 . 4 . Energy Cannon 1 | . 1 . . . Ballistic Gun 3 | 2 . . 1 . Ballistic Cannon 3 | . . . 3 . Launcher 4 | . . . 4 . Special Weapon . | . . . . . Impact Weapon . | . . . . . Slashing Weapon 2 | . . . 2 . Piercing Weapon . | . . . . . Special Melee Weapon . | . . . . . Unidentified Prototypes . | . . . . . Parts Lost 13 | . 1 . 4 8 Power 2 | . . . 1 1 Propulsion 6 | . . . 2 4 Utility 1 | . . . . 1 Weapon 4 | . 1 . 1 2 Highest Loss Streak 8 | . 1 . 3 8 To Critical Strikes . | . . . . . Average Slot Usage (%) 99 | . 100 100 98 97 Engine 12 | . 14 14 10 11 Leg 36 | . 28 28 42 42 Device 12 | . 14 14 11 10 Storage 12 | . 14 14 11 11 Energy Gun 9 | . 9 14 10 . Energy Cannon 4 | . 6 14 2 . Ballistic Gun 4 | . 11 . . . Launcher 2 | . . . 3 10 Slashing Weapon 3 | . . . 3 10 Peak Build Rating 18 | 7 8 8 18 14 Average Rating 11 | 5 7 8 14 13 On Entrance 7 | . 7 8 8 14 Naked Turns . | . . . . . Heaviest Build 94 | 15 90 21 94 89 Greatest Support 46 | 20 20 20 46 40 Greatest Overweight (x) 27 | 1 4 1 4 27 Average Overweight (x) 1 | . . 1 1 2 Largest Inventory Capacity 25 | 8 25 10 25 25 Average Capacity 18 | 7 11 10 24 25 Most Carried 25 | 2 11 10 25 25 Average Carried 15 | 1 8 9 20 24 Final Capacity 25 | 8 10 10 25 25 Final Carried 25 | 2 10 10 23 25 Class Distribution -------------------- 59% | Scavenger-Mutant 40% | Mutant Dominant Class ---------------- Mutant | -10/Materials Mutant | -10/Mines Scavenger-Mutant | -9/Materials Scavenger-Mutant | -9/Mines Resources | -11 -10 -10 -9 -9 ----------- Run | Yrd Mat Min Mat Min Matter Collected 1229 | 306 276 172 445 30 Remotely . | . . . . . Salvage Created 1647 | 105 622 42 827 51 Parts 124 | 15 40 2 56 11 Haulers Intercepted 5 | . 1 . 4 . Recyclers Shooed 1 | . 1 . . . Parts Field Recycled . | . . . . . Retrieved Matter . | . . . . . Parts Self-Destructed . | . . . . . Prevented . | . . . . . Kills | -11 -10 -10 -9 -9 ------- Run | Yrd Mat Min Mat Min Combat Hostiles Destroyed 32 | . 12 3 13 4 Melee 5 | . . . 5 . Guns 12 | . 9 1 2 . Cannons 7 | . 2 2 3 . AOE 7 | . . . 3 4 Classes Destroyed 11 | 1 6 . 4 . Worker 3 | . . . 3 . Builder 3 | . 1 . 1 1 Tunneler 5 | 5 . . . . Hauler 5 | . 1 . 4 . Recycler 1 | . . . 1 . Operator 1 | . 1 . . . Watcher 3 | . 3 . . . Swarmer 12 | . 3 3 2 4 Grunt 13 | . 9 . 4 . Duelist 1 | . . . 1 . Sentry 6 | . . . 6 . Best Kill Streak 5 | 3 5 3 4 4 Combat Bots Only 5 | . 5 3 3 4 Max Kills in Single Turn 3 | 1 2 1 2 3 Gunslinging 1 | . 1 . . . Exploded 3 | . . . 2 3 Melee 1 | . . . 1 . Uniques/NPCs Destroyed . | . . . . . Combat | -11 -10 -10 -9 -9 -------- Run | Yrd Mat Min Mat Min Hostile Shots Fired 166 | . 66 12 59 29 Missed 42 | . 16 4 16 6 Damage Taken 2087 | . 531 72 706 778 Core 482 | . 79 . 101 302 Absorbed by Shields . | . . . . . Regen/Repaired (Parts) 25 | . . . 25 . Core Remaining (%) 84 | 100 . 68 . . Volleys Fired 101 | 6 50 4 36 5 Largest 2 | 2 2 2 2 1 Hottest 110 | 40 110 110 110 30 Shots Fired 188 | 12 101 8 62 5 Gun 126 | 12 86 4 24 . Cannon 49 | . 15 4 30 . Launcher 13 | . . . 8 5 Special . | . . . . . Kinetic 85 | 12 60 . 13 . Thermal 74 | . 41 8 25 . Explosive 13 | . . . 8 5 Electromagnetic 16 | . . . 16 . Robot Hit Streak 13 | 3 11 13 9 1 Robot Miss Streak 5 | 1 5 1 4 . Penetration Max . | . . . . . Secondary Targets 1 | . 1 . . . Max Gunslinging Chain 1 | . 1 . . . Shots Hit Robots 135 | 6 66 6 55 2 Core Hits 74 | 5 28 3 32 6 Critical Kills . | . . . . . Critical Parts Destroyed . | . . . . . Critical Strikes 6 | . 3 . 3 . Burn 4 | . 3 . 1 . Blast 1 | . . . 1 . Sever 1 | . . . 1 . Melee Attacks 16 | . . . 15 1 Impact . | . . . . . Slashing 16 | . . . 15 1 Piercing . | . . . . . Sneak Attacks 1 | . . . . 1 Combat Hostiles . | . . . . . Follow-up Attacks . | . . . . . Damage Inflicted 2733 | 73 865 86 1451 258 Guns 1031 | 73 672 51 235 . Cannons 683 | . 193 35 455 . Explosions 509 | . . . 309 200 Melee 510 | . . . 452 58 Ramming . | . . . . . Kinetic 703 | 73 419 . 211 . Thermal 837 | . 446 86 305 . Explosive 509 | . . . 309 200 Electromagnetic 174 | . . . 174 . Impact . | . . . . . Slashing 510 | . . . 452 58 Piercing . | . . . . . Highest Corruption 2 | . 2 2 . . Average Corruption 2 | . 2 2 . . Corruption Purged . | . . . . . Corruption Blocked . | . . . . . Effects 8 | . 7 1 . . Message Errors 1 | . 1 . . . Matter Fused 2 | . 2 . . . Heat Flow Errors 2 | . 1 1 . . Energy Discharges 1 | . 1 . . . Data Loss (minor) 1 | . 1 . . . Misfires 1 | . 1 . . . Overload Shots . | . . . . . Overflow Damage 14 | . 4 . . 10 Projectiles 4 | . 4 . . . Explosions 10 | . . . . 10 Melee . | . . . . . Knockbacks 1 | . . . 1 . Impact . | . . . . . Kinetic 1 | . . . 1 . Secondary . | . . . . . Self-Inflicted Damage 20 | . . . 1 19 Shots 2 | . . . 1 1 Rammed . | . . . . . Targets Rammed . | . . . . . Kicked . | . . . . . Crushed . | . . . . . Highest Temperature 336 | . 336 185 27 . Average Temperature 78 | . 101 50 10 . Received Heat Transfer 549 | . 243 . 306 . Siege Activations . | . . . . . Robots Corrupted . | . . . . . Combat Hostiles . | . . . . . Parts Fried 1 | . . . 1 . Impact Corruptions . | . . . . . Robots Melted 1 | . 1 . . . Combat Hostiles 1 | . 1 . . . Parts Melted 4 | . 2 . 2 . Heat Transferred 2368 | . 1369 222 777 . Parts Sabotaged . | . . . . . Parts Stolen . | . . . . . Parts Stripped . | . . . . . Power Chain Reactions . | . . . . . Alert | -11 -10 -10 -9 -9 ------- Run | Yrd Mat Min Mat Min Peak Influence 358 | 25 207 142 358 180 Initial 72 | . 16 57 55 72 Average 159 | 9 124 139 212 114 Maximum Alert Level 1 | . 1 . 1 . Low Security (%) 67 | 100 81 100 39 100 Level 1 32 | . 18 . 60 . Level 2 . | . . . . . Level 3 . | . . . . . Level 4 . | . . . . . Level 5 . | . . . . . High Security . | . . . . . Max Security . | . . . . . Squads Dispatched 8 | . 5 . 3 . Investigation 4 | . 2 . 2 . Extermination . | . . . . . Reinforcement 4 | . 3 . 1 . Assault . | . . . . . Garrison . | . . . . . Intercept . | . . . . . Searches Triggered . | . . . . . Construction Impeded . | . . . . . Haulers Reinforced . | . . . . . Active Scanning Responses . | . . . . . Cargo Convoy Interrupts . | . . . . . Stealth | -11 -10 -10 -9 -9 --------- Run | Yrd Mat Min Mat Min Distress Signals 4 | . 1 . 2 1 Communications Jammed . | . . . . . Distress Signals . | . . . . . Times Spotted 49 | . 21 3 20 5 Peak Tracking Total 5 | . 5 3 4 4 Tactical Retreats 2 | . 2 . . . Traps | -11 -10 -10 -9 -9 ------- Run | Yrd Mat Min Mat Min Traps Triggered 1 | . 1 . . . Indirectly . | . . . . . Trap Hack Attempts . | . . . . . Triggered . | . . . . . Disarmed . | . . . . . Reprogrammed . | . . . . . Reused . | . . . . . Traps Extracted . | . . . . . Installed . | . . . . . Triggered . | . . . . . Machines | -11 -10 -10 -9 -9 ---------- Run | Yrd Mat Min Mat Min Machines Disabled . | . . . . . Max in Single Turn . | . . . . . Machines Repaired . | . . . . . Machines Dismantled . | . . . . . Machines Sabotaged . | . . . . . Overloaded Fab Kills . | . . . . . Hacking | -11 -10 -10 -9 -9 --------- Run | Yrd Mat Min Mat Min Machines Accessed 10 | . 5 . 5 . Terminals 8 | . 5 . 3 . Fabricators . | . . . . . Repair Stations 1 | . . . 1 . Recycling Units . | . . . . . Scanalyzers 1 | . . . 1 . Garrison Access . | . . . . . Total Hacks 34 | . 17 . 17 . Successful 18 | . 9 . 9 . Failed 16 | . 8 . 8 . Catastrophic 3 | . 1 . 2 . Database Lockouts . | . . . . . Manual 21 | . 13 . 8 . Terminals 26 | . 17 . 9 . Fabricators . | . . . . . Repair Stations 4 | . . . 4 . Recycling Units . | . . . . . Scanalyzers 4 | . . . 4 . Garrison Access . | . . . . . Terminal Hacks 11 | . 9 . 2 . Prototype ID Bank 3 | . 2 . 1 . Branch Access Points 2 | . 1 . 1 . Emergency Access Points 2 | . 2 . . . Fabricator Index 1 | . 1 . . . Locate Traps 1 | . 1 . . . Hauler Manifests 1 | . 1 . . . Zone Layout 1 | . 1 . . . Fabricator Hacks . | . . . . . Repair Station Hacks 3 | . . . 3 . Scan Component 2 | . . . 2 . Repair 1 | . . . 1 . Recycling Unit Hacks . | . . . . . Scanalyzer 4 | . . . 4 . Insert Component 2 | . . . 2 . Analyze 2 | . . . 2 . Garrison Access Hacks . | . . . . . Unauthorized Hacks . | . . . . . Terminals . | . . . . . Fabricators . | . . . . . Repair Stations . | . . . . . Recycling Units . | . . . . . Scanalyzers . | . . . . . Garrison Access . | . . . . . Data Cores Recovered 1 | . . . 1 . Used 1 | . . . 1 . Hacking Detections 9 | . 4 . 5 . Full Trace Events 7 | . 3 . 4 . Feedback Events . | . . . . . Feedback Blocked . | . . . . . Robot Schematics Acquired . | . . . . . Robots Built . | . . . . . Authchips . | . . . . . Time . | . . . . . Total Robot Build Rating . | . . . . . Part Schematics Acquired 1 | . . . 1 . Parts Built . | . . . . . Authchips . | . . . . . Time . | . . . . . Total Part Build Rating . | . . . . . Parts Repaired 1 | . . . 1 . Time 26 | . . . 26 . Parts Recycled . | . . . . . Recycled Matter . | . . . . . Retrieved Matter . | . . . . . Retrieved Components . | . . . . . Parts Scanalyzed 2 | . . . 2 . Part Schematics Acquired 1 | . . . 1 . Parts Damaged . | . . . . . Bothacking | -11 -10 -10 -9 -9 ------------ Run | Yrd Mat Min Mat Min Used RIF Installer . | . . . . . Robots Hacked . | . . . . . Non-combat . | . . . . . Combat . | . . . . . Robot Hacks Applied . | . . . . . Relay Couplers Released . | . . . . . Fabnet Peak Effective % . | . . . . . Robots Rewired . | . . . . . Allies Hacked . | . . . . . Hacks Repelled . | . . . . . Allies | -11 -10 -10 -9 -9 -------- Run | Yrd Mat Min Mat Min Total Allies 3 | . . 3 . . Largest Group 3 | . . 3 3 . Highest-Rated Group 40 | . . 40 40 . Highest-Rated Ally 16 | . . 16 16 . Total Orders . | . . . . . Ally Attacks 51 | . . . 51 . Total Damage 471 | . . . 471 . Kills 9 | . . . 9 . Allies Corrupted . | . . . . . Allies Melted . | . . . . . Intel | -11 -10 -10 -9 -9 ------- Run | Yrd Mat Min Mat Min Robot Analysis Total . | . . . . . Derelict Logs Recovered 1 | . . 1 . . Drone Launches . | . . . . . Drone Recoveries . | . . . . . Exploration | -11 -10 -10 -9 -9 ------------- Run | Yrd Mat Min Mat Min Turns Passed 4152 | 124 1431 242 1829 526 Spaces Moved 1770 | 82 687 117 707 177 Core 13 | 12 . . . 1 Treads 2 | . . . 2 . Legs 1755 | 70 687 117 705 176 Wheels . | . . . . . Hover . | . . . . . Flight . | . . . . . Fastest Speed 50 | 50 120 190 120 260 Average Speed 191 | 115 171 190 199 269 Slowest Speed 1400 | 120 400 190 480 1400 Overloaded Moves . | . . . . . Propulsion Burnouts . | . . . . . Robots Hopped . | . . . . . Cave-ins Triggered . | . . . . . Exploration Rate (%) 38 | 4 74 45 44 27 Regions Visited 4 Branch Regions 2 Pre-discovered Areas . | . . . . . Known Exits Taken 2 | . 1 . 1 . Unknown Exits Taken 2 | 1 . 1 . . Scrap Searched 4 | . . 3 . 1 Spaces Dug 7 | . . . . 7 Terrain Destroyed 58 | . . . 38 20 Melee . | . . . . . Projectile . | . . . . . AOE 58 | . . . 38 20 Terrain Rammed . | . . . . . Walls Destroyed . | . . . . . Machines Disabled . | . . . . . Actions | -11 -10 -10 -9 -9 --------- Run | Yrd Mat Min Mat Min Total 2325 | 96 839 129 1035 226 Wait 344 | . 73 6 225 40 Move 1766 | 81 686 116 706 177 Hop . | . . . . . Pick Up 35 | 2 12 1 18 2 Fast Attach 11 | 7 1 . 3 . Attach 8 | . 1 . 7 . Detach 2 | . . . 2 . Swap 28 | . 8 1 18 1 Drop 14 | . 8 1 5 . Fire 101 | 6 50 4 36 5 Melee 16 | . . . 15 1 Ram . | . . . . . Kick . | . . . . . Crush . | . . . . . Escape Stasis . | . . . . . Rewire . | . . . . . Trap . | . . . . . Miscellaneous . | . . . . . Route ------- -11/Scrapyard -10/Materials (discovered 3 exits: *Mat x2 / *Min) -10/Mines -9/Materials -9/Mines History --------- Turn | Location | Event 7 | -11/Scrapyard | Discovered new exit (range 15) 125 | -11/Scrapyard | Entered Materials 244 | -10/Materials | Discovered new exit (range 12) 305 | -10/Materials | Build established: Mutant 404 | -10/Materials | Discovered new exit (range 15) 522 | -10/Materials | Discovered new exit (range 15) 1313 | -10/Materials | Identified exit to Mines 1556 | -10/Materials | Entered Mines 1567 | -10/Mines | Met a Derelict bent on vengeance 1670 | -10/Mines | Assisted by bots powering up and referring to "LRC-V3" 1748 | -10/Mines | Discovered new exit (range 15) 1798 | -10/Mines | Entered Materials 1798 | -9/Materials | Accompanied by 3 allies 1798 | -9/Materials | Evolved 2 slots: Propulsion x2 2033 | -9/Materials | Discovered new exit (range 16) 2100 | -9/Materials | Build established: Scavenger-Mutant 2638 | -9/Materials | Identified exit to Mines 3267 | -9/Materials | Lost 3 parts (1p2n) 3409 | -9/Materials | Repaired Grenade Launcher 3627 | -9/Materials | Entered Mines 3699 | -9/Mines | YI-UF0 nonchalantly dropped a Grenade Launcher on the ground 3878 | -9/Mines | Assembled infested the area 4136 | -9/Mines | Core integrity fell below 50% 4147 | -9/Mines | Core integrity fell below 20% 4153 | -9/Mines | Destroyed by YI-UF0 with YI-UF0's Doublenader Last Messages --------------- 04005_ Found Lgt. EM Pulse Cannon. 04005_ Found 70 Matter. 04006_ Acquired 10 matter. 04045_ YI-UF0 mumbles something. 04131_ Grenade Launcher destroyed. 04131_ Aluminum Leg destroyed. 04132_ The unstable cave ceiling collapses. 04133_ Aluminum Leg destroyed. 04134_ The unstable cave ceiling collapses. 04138_ Structural Scanner destroyed. 04138_ Aluminum Leg destroyed. 04139_ The unstable cave ceiling collapses. 04140_ YI-UF0 mumbles something. 04141_ The unstable cave ceiling collapses. 04142_ YI-UF0 mumbles something. 04144_ Katana destroyed. 04146_ Aluminum Leg destroyed. 04149_ The unstable cave ceiling collapses. 04151_ Lgt. Ion Engine destroyed. 04153_ The unstable cave ceiling collapses. Map ----- +----------------------------------------------------+ | | | | | | | ???????????????????????????????????????#### | | ???????????????######?#######?????????##### | | ???????????????###############???????#### | | ???????????????## #### ######????### | | ???????????????### ######???## | | ????????????????#### ####??### | | ??????????????????### ####### [# | | ??????????????????### ####### # | | ??????????????????### #### # | | ??????????????????## # | | ??????????########## # | | ?????????############ ##### # | | ??########## ##### ## ## ######## | | ??######### #### ### ## ###?#### | | ?### ### ### #### # ##?????? | | ?### ### ## ###### #?????? | | ?## # ##### ##### # ##????? | | ?## ##### ## ##????? | | ?### ### # ## #????? | | ??## # ## ????? | | ??######### # # # # ????? | | ??######### ????? | | ?????????### @ g ??? | | ?????????### | | ??????????## ### | | ??????????### ## #### ###### | | ??????????###### ############? | | ???????????###### # # ###?#####???? | | ????????????????######### ##??????????? | | ??????????????????????#### ###??????????? | | ???????????????????????#########??????????? | | ?????????????????????????######???????????? | | ??????????????????????????????????????????? | | ??????????????????????????????????????????? | | ??????????????????????????????????????????? | | ??????????????????????????????????????????? | | ??????????????????????????????????????????? | | ??????????????????????????????????????????? | | ??????????????????????????????????????????? | | ??????????????????????????????????????????? | | ??????????????????????????????????????????? | | ??????????????????????????????????????????? | | ??????????????????????????????????????????? | | ??????????????????????????????????????????? | | ??????????????????????????????????????????? | | ??????????????????????????????????????????? | | ??????????????????????????????????????????? | +----------------------------------------------------+ Best States ------------- Heat Dissipation 38 Energy Generation 10 Energy Capacity 250 Matter Stores 300 Matter Capacity 300 Sight Range 16 Terrain Scan Density 10 Evasion (%) 55 Recoil Reduction 1 Item Schematics ----------------- Katana | -9/Materials | Scanalyzed Robot Schematics ------------------ None Fabricated ------------ Nothing Alien Tech Used ----------------- None Achievements -------------- None Challenges ------------ None Game ------ Seed ModifiedDirtyNanoactuators Manual? 0 Play Time 00:37:24 Cumulative 14.6 hours Start 2025.01.01 @ 19:07:05 End 2025.01.01 @ 19:41:30 Sessions 1 Manual Loads 0 Difficulty Rogue Special Mode None Game No. 17 Rogue 17 Adventurer 0 Explorer 0 Win Type - Total 0 Types 0/0/0/0/0/0/0/0/0 Lore% 11 Gallery% 19 Achievement% 18 Wizard Run 0 Options --------- Layout 0 ASCII 0 Keyboard 0 Movement Vi Keybinds 0 Fullscreen 1 Font 18/SmallcapsGlow Map View 112x50 Zoom Use 0% Tactical HUD 1 Map Filters NONE Filters NONE Steam 1 RUN: 7131c916-fbe8-478e-b67d-d4781e995543